[Event "*** Titled Tuesday 3|2 Blitz"]
[Site "Chess.com"]
[Date "2016.09.06"]
[Round "2"]
[White "fpawn"]
[Black "theprosecution1"]
[Result "1/2-1/2"]
[WhiteElo "2206"]
[BlackElo "2452"]
[TimeControl "180+2"]
[EndTime "17:24:21 PDT"]
[Termination "Game drawn by agreement"]

1. e4 {[%clk 0:03:01]} 1... c5 {[%clk 0:03:00.9]} 2. Nc3 {[%clk 0:03:01.8]} 2...
Nc6 {[%clk 0:03:01.7]} 3. g3 {[%clk 0:03:03.7]} 3... g6 {[%clk 0:03:03.2]} 4.
Bg2 {[%clk 0:03:05.6]} 4... Bg7 {[%clk 0:03:04.8]} 5. d3 {[%clk 0:03:06.9]} 5...
d6 {[%clk 0:03:06.4]} 6. f4 {[%clk 0:03:08.2]} 6... Nf6 {[%clk 0:03:06.9]} 7. h3
{[%clk 0:03:08.8]} 7... O-O {[%clk 0:03:07.9]} 8. Nf3 {[%clk 0:03:10]} 8... Rb8
{[%clk 0:03:09.2]} 9. g4 {[%clk 0:03:09.1]} 9... b5 {[%clk 0:03:09.8]} 10. O-O
{[%clk 0:03:06.7]} 10... b4 {[%clk 0:03:10]} 11. Ne2 {[%clk 0:03:07.8]} 11... a5
{[%clk 0:03:11.3]} 12. Rb1 {[%clk 0:03:07.8]} 12... a4 {[%clk 0:03:12.3]} 13.
Be3 {[%clk 0:03:08.9]} 13... Ba6 {[%clk 0:03:07]} 14. b3 {[%clk 0:03:09.2]}
14... axb3 {[%clk 0:03:04]} 15. axb3 {[%clk 0:03:08]} 15... Nd7 {[%clk
0:03:04.5]} 16. g5 {[%clk 0:03:03]} 16... Bb7 {[%clk 0:03:01.4]} 17. h4 {[%clk
0:03:03.6]} 17... Ra8 {[%clk 0:03:01.7]} 18. h5 {[%clk 0:03:03.5]} 18... e6
{[%clk 0:03:00.1]} 19. Bh3 {[%clk 0:02:57.6]} 19... Qe7 {[%clk 0:02:54.3]} 20.
hxg6 {[%clk 0:02:19.8]} 20... hxg6 {[%clk 0:02:34.9]} 21. Nh2 {[%clk 0:02:16.6]}
21... Nd4 {[%clk 0:01:35.2]} 22. Rf2 {[%clk 0:02:12.1]} 22... Ra2 {[%clk
0:01:29.3]} 23. Nc1 {[%clk 0:02:09.1]} 23... Ra3 {[%clk 0:01:29.4]} 24. Ng4
{[%clk 0:01:57.9]} 24... Rfa8 {[%clk 0:01:30.7]} 25. Rh2 {[%clk 0:01:53.3]}
25... Ra1 {[%clk 0:01:30]} 26. Rxa1 {[%clk 0:01:50.7]} 26... Rxa1 {[%clk
0:01:31.9]} 27. Bg2 {[%clk 0:01:33.5]} 27... Bc6 {[%clk 0:00:51.8]} 28. Qe1
{[%clk 0:01:33.3]} 28... e5 {[%clk 0:00:47.7]} 29. f5 {[%clk 0:01:18.5]} 29...
gxf5 {[%clk 0:00:47.6]} 30. Nh6+ {[%clk 0:01:18.8]} 30... Kf8 {[%clk 0:00:42.4]}
31. Nxf5 {[%clk 0:01:19.3]} 31... Nxf5 {[%clk 0:00:42.9]} 32. exf5 {[%clk
0:01:18.8]} 32... Bxg2 {[%clk 0:00:42.1]} 33. Kxg2 {[%clk 0:01:19.6]} 33... e4
{[%clk 0:00:37.2]} 34. Qf2 {[%clk 0:01:03.2]} 34... exd3 {[%clk 0:00:32.5]} 35.
f6 {[%clk 0:00:37.5]} 35... Qe4+ {[%clk 0:00:31.1]} 36. Qf3 {[%clk 0:00:38]}
36... Qxf3+ {[%clk 0:00:30.3]} 37. Kxf3 {[%clk 0:00:39.2]} 37... Nxf6 {[%clk
0:00:27.1]} 38. gxf6 {[%clk 0:00:38]} 38... Bxf6 {[%clk 0:00:29]} 39. Nxd3
{[%clk 0:00:38.4]} 39... Ke7 {[%clk 0:00:29.9]} 40. Nf4 {[%clk 0:00:38.3]} 40...
Be5 {[%clk 0:00:29.8]} 41. Rh7 {[%clk 0:00:36]} 41... Ra2 {[%clk 0:00:29.7]} 42.
Ng6+ {[%clk 0:00:34.7]} 42... Kf6 {[%clk 0:00:27.4]} 43. Nxe5 {[%clk 0:00:35.7]}
43... Kxe5 {[%clk 0:00:29]} 44. Rh2 {[%clk 0:00:33.4]} 44... f5 {[%clk
0:00:16.1]} 45. Rd2 {[%clk 0:00:33.3]} 45... Ke6 {[%clk 0:00:14.3]} 46. Bf2
{[%clk 0:00:29.6]} 46... c4 {[%clk 0:00:14.6]} 47. Ke2 {[%clk 0:00:17.8]} 47...
c3 {[%clk 0:00:14.2]} 48. Rd4 {[%clk 0:00:16.7]} 48... Rxc2+ {[%clk 0:00:15.7]}
49. Ke1 {[%clk 0:00:16.7]} 49... Rc1+ {[%clk 0:00:16.5]} 50. Ke2 {[%clk
0:00:17.5]} 50... Rc2+ {[%clk 0:00:17]} 51. Ke1 {[%clk 0:00:18.5]} 51... Ke5
{[%clk 0:00:14.9]} 52. Rc4 {[%clk 0:00:18.5]} 52... d5 {[%clk 0:00:14.6]} 53.
Rc8 {[%clk 0:00:18.7]} 53... Ke4 {[%clk 0:00:14.3]} 54. Re8+ {[%clk 0:00:18.7]}
54... Kf3 {[%clk 0:00:12.8]} 55. Re3+ {[%clk 0:00:19.3]} 55... Kf4 {[%clk
0:00:14.5]} 56. Rd3 {[%clk 0:00:18.3]} 56... Rc1+ {[%clk 0:00:13.6]} 57. Ke2
{[%clk 0:00:19.5]} 57... Rc2+ {[%clk 0:00:14.1]} 58. Ke1 {[%clk 0:00:20.8]}
58... Ke4 {[%clk 0:00:13.2]} 59. Re3+ {[%clk 0:00:19.7]} 59... Kf4 {[%clk
0:00:14.6]} 60. Rd3 {[%clk 0:00:21.2]} 60... Rb2 {[%clk 0:00:15.3]} 61. Rd4+
{[%clk 0:00:20.9]} 61... Kf3 {[%clk 0:00:16.8]} 62. Rd3+ {[%clk 0:00:20.6]}
62... Ke4 {[%clk 0:00:16.4]} 63. Rd4+ {[%clk 0:00:20.8]} 63... Ke5 {[%clk
0:00:17.5]} 64. Rxb4 {[%clk 0:00:18.8]} 64... Rb1+ {[%clk 0:00:11.9]} 65. Ke2
{[%clk 0:00:19.5]} 65... c2 {[%clk 0:00:13.3]} 66. Bd4+ {[%clk 0:00:18.9]} 66...
Kd6 {[%clk 0:00:14.2]} 67. Be3 {[%clk 0:00:20.1]} 67... c1=Q {[%clk 0:00:09.3]}
68. Bxc1 {[%clk 0:00:20.5]} 68... Rxc1 {[%clk 0:00:11.2]} 69. Rb8 {[%clk
0:00:20.6]} 69... Ke5 {[%clk 0:00:12.3]} 70. Ke3 {[%clk 0:00:20.2]} 70... Rc3+
{[%clk 0:00:13]} 71. Kd2 {[%clk 0:00:20.6]} 71... Rh3 {[%clk 0:00:14.6]} 72. b4
{[%clk 0:00:20.2]} 72... Kd4 {[%clk 0:00:16.5]} 73. b5 {[%clk 0:00:20.8]} 73...
Rh2+ {[%clk 0:00:18.4]} 74. Ke1 {[%clk 0:00:21.9]} 74... Rb2 {[%clk 0:00:19]}
75. b6 {[%clk 0:00:22.7]} 75... f4 {[%clk 0:00:18]} 76. b7 {[%clk 0:00:23.3]}
76... Kd3 {[%clk 0:00:18.8]} 77. Kf1 {[%clk 0:00:23.3]} 77... d4 {[%clk
0:00:20.1]} 78. Ke1 {[%clk 0:00:23.8]} 78... Rb1+ {[%clk 0:00:21.3]} 79. Kf2
{[%clk 0:00:24.7]} 79... Kd2 {[%clk 0:00:23.2]} 80. Rd8 {[%clk 0:00:22.7]} 80...
Rxb7 {[%clk 0:00:18.5]} 81. Rxd4+ {[%clk 0:00:23.5]} 81... Kc3 {[%clk
0:00:19.1]} 82. Rxf4 {[%clk 0:00:24.5]} 1/2-1/2

[Event "*** Titled Tuesday 3|2 Blitz"]
[Site "Chess.com"]
[Date "2016.09.06"]
[Round "2"]
[White "NTBT_DHS"]
[Black "Lapitch"]
[Result "1/2-1/2"]
[WhiteElo "2537"]
[BlackElo "2576"]
[TimeControl "180+2"]
[EndTime "17:24:24 PDT"]
[Termination "Game drawn by repetition"]

1. d4 {[%clk 0:03:01.9]} 1... d5 {[%clk 0:03:00.1]} 2. c4 {[%clk 0:03:03.2]}
2... e6 {[%clk 0:03:01.4]} 3. Nf3 {[%clk 0:03:02.5]} 3... c5 {[%clk 0:03:02.6]}
4. g3 {[%clk 0:02:56.7]} 4... Nf6 {[%clk 0:03:01.7]} 5. Bg2 {[%clk 0:02:57.9]}
5... Be7 {[%clk 0:03:00.4]} 6. O-O {[%clk 0:02:58.4]} 6... O-O {[%clk
0:03:01.2]} 7. dxc5 {[%clk 0:02:50.8]} 7... Bxc5 {[%clk 0:03:00.9]} 8. Nbd2
{[%clk 0:02:51.8]} 8... Nc6 {[%clk 0:02:57.5]} 9. Nb3 {[%clk 0:02:49.1]} 9...
Bb6 {[%clk 0:02:39.2]} 10. c5 {[%clk 0:02:38.3]} 10... Bc7 {[%clk 0:02:39.4]}
11. a3 {[%clk 0:02:25.3]} 11... e5 {[%clk 0:02:35.7]} 12. Bg5 {[%clk 0:02:20.1]}
12... Be6 {[%clk 0:02:24.6]} 13. Qc2 {[%clk 0:02:05.5]} 13... h6 {[%clk
0:02:23.4]} 14. Bd2 {[%clk 0:02:06.3]} 14... a5 {[%clk 0:02:18.9]} 15. Rad1
{[%clk 0:02:01.4]} 15... a4 {[%clk 0:02:17.3]} 16. Nc1 {[%clk 0:01:59]} 16... e4
{[%clk 0:02:16.9]} 17. Ne1 {[%clk 0:01:55.9]} 17... Qe7 {[%clk 0:02:08.4]} 18.
e3 {[%clk 0:01:52.1]} 18... Bg4 {[%clk 0:02:02.8]} 19. f3 {[%clk 0:01:52]} 19...
exf3 {[%clk 0:02:00.2]} 20. Bxf3 {[%clk 0:01:53.5]} 20... Bh3 {[%clk 0:01:51.2]}
21. Ng2 {[%clk 0:01:53.8]} 21... Ne5 {[%clk 0:01:49.2]} 22. Be2 {[%clk
0:01:32.5]} 22... Ne4 {[%clk 0:01:47.9]} 23. Be1 {[%clk 0:01:28.5]} 23... Rfd8
{[%clk 0:01:44.2]} 24. Nd3 {[%clk 0:01:19.8]} 24... Nc4 {[%clk 0:01:22.3]} 25.
Ndf4 {[%clk 0:00:47.6]} 25... Bxf4 {[%clk 0:01:22.6]} 26. Bxc4 {[%clk
0:00:48.7]} 26... Bxg2 {[%clk 0:01:23]} 27. Rxf4 {[%clk 0:00:49.6]} 27... dxc4
{[%clk 0:01:22.8]} 28. Kxg2 {[%clk 0:00:47.5]} 28... Rxd1 {[%clk 0:01:23]} 29.
Qxd1 {[%clk 0:00:42.3]} 29... g5 {[%clk 0:01:13.9]} 30. Qg4 {[%clk 0:00:37.4]}
30... Nf6 {[%clk 0:01:10.5]} 31. Rxf6 {[%clk 0:00:28.6]} 31... Qxf6 {[%clk
0:01:12.4]} 32. Bc3 {[%clk 0:00:29.1]} 32... Qc6+ {[%clk 0:01:09.9]} 33. Kf2
{[%clk 0:00:29.2]} 33... Qxc5 {[%clk 0:01:06.9]} 34. Qe4 {[%clk 0:00:29.3]}
34... Qc6 {[%clk 0:00:57]} 35. Qe5 {[%clk 0:00:26.3]} 35... f6 {[%clk
0:00:53.7]} 36. Qf5 {[%clk 0:00:25.1]} 36... Kg7 {[%clk 0:00:54.5]} 37. h4
{[%clk 0:00:26.1]} 37... gxh4 {[%clk 0:00:39.7]} 38. gxh4 {[%clk 0:00:27.3]}
38... Ra6 {[%clk 0:00:23.5]} 39. h5 {[%clk 0:00:26.5]} 39... Qe8 {[%clk
0:00:23.7]} 40. Qg4+ {[%clk 0:00:25.7]} 40... Kh8 {[%clk 0:00:17.5]} 41. Qxc4
{[%clk 0:00:24.1]} 41... Qxh5 {[%clk 0:00:15.5]} 42. Qc8+ {[%clk 0:00:24.8]}
42... Kh7 {[%clk 0:00:14.8]} 43. Qxb7+ {[%clk 0:00:26]} 43... Kg6 {[%clk
0:00:16.2]} 44. Qxa6 {[%clk 0:00:26.2]} 44... Qh2+ {[%clk 0:00:17.7]} 45. Ke1
{[%clk 0:00:27.1]} 45... Qg1+ {[%clk 0:00:18.1]} 46. Kd2 {[%clk 0:00:28.1]}
46... Qg2+ {[%clk 0:00:16.1]} 47. Qe2 {[%clk 0:00:28.9]} 47... Qg3 {[%clk
0:00:16.9]} 48. Qd3+ {[%clk 0:00:27.5]} 48... f5 {[%clk 0:00:18.4]} 49. Qd4
{[%clk 0:00:26.9]} 49... Qf2+ {[%clk 0:00:16.8]} 50. Kd1 {[%clk 0:00:28]} 50...
Qf1+ {[%clk 0:00:16.5]} 51. Kc2 {[%clk 0:00:28.6]} 51... Kg5 {[%clk 0:00:15.2]}
52. Qg7+ {[%clk 0:00:26.4]} 52... Kh5 {[%clk 0:00:16.7]} 53. Qd4 {[%clk
0:00:21.4]} 53... Kg5 {[%clk 0:00:16.9]} 54. Qxa4 {[%clk 0:00:19.3]} 54... h5
{[%clk 0:00:15.3]} 55. Bd2 {[%clk 0:00:18.3]} 55... h4 {[%clk 0:00:13.5]} 56.
e4+ {[%clk 0:00:18.5]} 56... f4 {[%clk 0:00:13.8]} 57. Qa5+ {[%clk 0:00:19.7]}
57... Kh6 {[%clk 0:00:11.8]} 58. Qf5 {[%clk 0:00:20.4]} 58... Qc4+ {[%clk
0:00:12.5]} 59. Bc3 {[%clk 0:00:19.7]} 59... Qe2+ {[%clk 0:00:13.6]} 60. Kb3
{[%clk 0:00:20.6]} 60... f3 {[%clk 0:00:13.1]} 61. Qf4+ {[%clk 0:00:19.2]} 61...
Kh5 {[%clk 0:00:14.6]} 62. Qf5+ {[%clk 0:00:20.6]} 62... Kh6 {[%clk 0:00:15.7]}
63. Bf6 {[%clk 0:00:21.9]} 63... Qd3+ {[%clk 0:00:14.9]} 64. Ka2 {[%clk
0:00:21.8]} 64... Qc4+ {[%clk 0:00:15]} 65. b3 {[%clk 0:00:23.4]} 65... Qe2+
{[%clk 0:00:15.2]} 66. Kb1 {[%clk 0:00:23.1]} 66... Qd1+ {[%clk 0:00:16.5]} 67.
Kb2 {[%clk 0:00:24.1]} 67... Qd2+ {[%clk 0:00:17.5]} 68. Kb1 {[%clk 0:00:25.7]}
68... Qd1+ {[%clk 0:00:18.8]} 69. Ka2 {[%clk 0:00:27.3]} 69... Qe2+ {[%clk
0:00:18.8]} 70. Bb2 {[%clk 0:00:26.3]} 70... f2 {[%clk 0:00:20.2]} 71. Qf6+
{[%clk 0:00:27.5]} 71... Kh5 {[%clk 0:00:21]} 72. Qf5+ {[%clk 0:00:29.1]} 72...
Kh6 {[%clk 0:00:22.5]} 73. Qf4+ {[%clk 0:00:30.3]} 73... Kh5 {[%clk 0:00:23.3]}
74. Qf5+ {[%clk 0:00:29.9]} 74... Kh6 {[%clk 0:00:24.6]} 75. Qf6+ {[%clk
0:00:29.9]} 75... Kh5 {[%clk 0:00:25.9]} 76. Qf5+ {[%clk 0:00:27.1]} 76... Kh6
{[%clk 0:00:27]} 77. Qf8+ {[%clk 0:00:18.6]} 77... Kh5 {[%clk 0:00:24.8]} 78.
Qf5+ {[%clk 0:00:16.6]} 78... Kh6 {[%clk 0:00:25.9]} 1/2-1/2

[Event "*** Titled Tuesday 3|2 Blitz"]
[Site "Chess.com"]
[Date "2016.09.06"]
[Round "3"]
[White "akinov-akinseye"]
[Black "tabarex"]
[Result "1-0"]
[WhiteElo "2034"]
[BlackElo "1861"]
[TimeControl "180+2"]
[EndTime "17:27:07 PDT"]
[Termination "akinov-akinseye won by checkmate"]

1. e4 {[%clk 0:03:00]} 1... Nc6 {[%clk 0:03:00.3]} 2. Nf3 {[%clk 0:03:00.1]}
2... f5 {[%clk 0:03:00.4]} 3. d3 {[%clk 0:02:59]} 3... e5 {[%clk 0:03:00]} 4.
Nc3 {[%clk 0:02:58.3]} 4... fxe4 {[%clk 0:03:00.6]} 5. dxe4 {[%clk 0:02:59]}
5... Nf6 {[%clk 0:03:02.3]} 6. Bc4 {[%clk 0:02:58]} 6... Bc5 {[%clk 0:03:02.9]}
7. O-O {[%clk 0:02:58]} 7... d6 {[%clk 0:03:03.5]} 8. Bg5 {[%clk 0:02:58.3]}
8... Bg4 {[%clk 0:02:47.3]} 9. Nd5 {[%clk 0:02:52.1]} 9... Nd4 {[%clk
0:02:46.8]} 10. c3 {[%clk 0:02:38.9]} 10... Nxf3+ {[%clk 0:02:44.4]} 11. gxf3
{[%clk 0:02:39.7]} 11... Bh3 {[%clk 0:02:45.4]} 12. Re1 {[%clk 0:02:40.6]} 12...
h6 {[%clk 0:02:45.5]} 13. Bh4 {[%clk 0:02:24.1]} 13... g5 {[%clk 0:02:45.4]} 14.
Bg3 {[%clk 0:02:11]} 14... Nxd5 {[%clk 0:02:46.1]} 15. Qxd5 {[%clk 0:02:06]}
15... c6 {[%clk 0:02:46.9]} 16. Qf7# {[%clk 0:02:06.5]} 1-0

[Event "*** Titled Tuesday 3|2 Blitz"]
[Site "Chess.com"]
[Date "2016.09.06"]
[Round "3"]
[White "E-Shaposhnikov"]
[Black "FearlessKing64"]
[Result "1-0"]
[WhiteElo "2667"]
[BlackElo "2310"]
[TimeControl "180+2"]
[EndTime "17:27:22 PDT"]
[Termination "E-Shaposhnikov won by resignation"]

1. Nf3 {[%clk 0:03:01.9]} 1... Nf6 {[%clk 0:03:00.2]} 2. c4 {[%clk 0:03:02.4]}
2... c5 {[%clk 0:02:59]} 3. Nc3 {[%clk 0:03:02.5]} 3... Nc6 {[%clk 0:03:00.2]}
4. g3 {[%clk 0:03:01.8]} 4... d5 {[%clk 0:02:59.8]} 5. d4 {[%clk 0:03:02.2]}
5... cxd4 {[%clk 0:02:53.8]} 6. Nxd4 {[%clk 0:03:02.7]} 6... g6 {[%clk
0:02:49.9]} 7. Bg2 {[%clk 0:02:45.8]} 7... Nxd4 {[%clk 0:02:22.9]} 8. Qxd4
{[%clk 0:02:47.7]} 8... dxc4 {[%clk 0:02:24.3]} 9. Qxd8+ {[%clk 0:02:33.7]} 9...
Kxd8 {[%clk 0:02:26.2]} 10. Bf4 {[%clk 0:02:35]} 10... e6 {[%clk 0:02:13]} 11.
O-O-O+ {[%clk 0:02:35]} 11... Ke8 {[%clk 0:02:11.3]} 12. Nb5 {[%clk 0:02:33.9]}
1-0

[Event "*** Titled Tuesday 3|2 Blitz"]
[Site "Chess.com"]
[Date "2016.09.06"]
[Round "3"]
[White "ItalianMachine"]
[Black "Salem-AR"]
[Result "0-1"]
[WhiteElo "2331"]
[BlackElo "2667"]
[TimeControl "180+2"]
[EndTime "17:28:46 PDT"]
[Termination "Salem-AR won by resignation"]

1. e4 {[%clk 0:03:02]} 1... c5 {[%clk 0:03:00.9]} 2. Nc3 {[%clk 0:03:01.7]} 2...
d6 {[%clk 0:03:01.4]} 3. f4 {[%clk 0:03:02.3]} 3... Nc6 {[%clk 0:03:01.9]} 4.
Bb5 {[%clk 0:02:58.8]} 4... g6 {[%clk 0:03:02.5]} 5. Nf3 {[%clk 0:02:59.1]} 5...
Bg7 {[%clk 0:03:03.8]} 6. O-O {[%clk 0:03:00.1]} 6... Bd7 {[%clk 0:03:03.8]} 7.
d3 {[%clk 0:03:00.1]} 7... Nf6 {[%clk 0:02:58.8]} 8. Ne2 {[%clk 0:02:54.8]} 8...
O-O {[%clk 0:02:58.2]} 9. c3 {[%clk 0:02:55.9]} 9... a6 {[%clk 0:02:58.3]} 10.
Bxc6 {[%clk 0:02:57.1]} 10... Bxc6 {[%clk 0:02:59.1]} 11. h3 {[%clk 0:02:56.7]}
11... c4 {[%clk 0:03:00.1]} 12. e5 {[%clk 0:02:56.8]} 12... dxe5 {[%clk
0:02:49.6]} 13. dxc4 {[%clk 0:02:48.2]} 13... Qb6+ {[%clk 0:02:31.4]} 14. Kh2
{[%clk 0:02:43.9]} 14... exf4 {[%clk 0:02:28.3]} 15. Nxf4 {[%clk 0:02:42]} 15...
Rad8 {[%clk 0:02:27.5]} 16. Qb3 {[%clk 0:02:43.2]} 16... Qc7 {[%clk 0:02:28.8]}
17. Kh1 {[%clk 0:02:39.2]} 17... Ne4 {[%clk 0:02:29.9]} 18. Re1 {[%clk
0:02:28.5]} 18... e6 {[%clk 0:02:23.3]} 19. Be3 {[%clk 0:02:29.2]} 19... Ng3+
{[%clk 0:02:19.7]} 20. Kg1 {[%clk 0:02:24.9]} 20... Nf5 {[%clk 0:02:20.7]} 21.
Qb6 {[%clk 0:02:20.6]} 21... Qb8 {[%clk 0:02:16.2]} 22. Rad1 {[%clk 0:02:10.8]}
22... Rxd1 {[%clk 0:02:12]} 23. Rxd1 {[%clk 0:02:07.9]} 23... Bh6 {[%clk
0:02:12.1]} 24. Rd4 {[%clk 0:01:43.7]} 24... Nxe3 {[%clk 0:02:10]} 0-1

[Event "*** Titled Tuesday 3|2 Blitz"]
[Site "Chess.com"]
[Date "2016.09.06"]
[Round "3"]
[White "gmjoey1"]
[Black "Rating-Schmating"]
[Result "1-0"]
[WhiteElo "2511"]
[BlackElo "2212"]
[TimeControl "180+2"]
[EndTime "17:28:55 PDT"]
[Termination "gmjoey1 won by checkmate"]

1. e4 {[%clk 0:03:01.9]} 1... e6 {[%clk 0:03:00.8]} 2. d4 {[%clk 0:03:02.1]}
2... d5 {[%clk 0:03:01.5]} 3. Nc3 {[%clk 0:03:03.7]} 3... Bb4 {[%clk 0:03:02.1]}
4. e5 {[%clk 0:03:04]} 4... c5 {[%clk 0:03:03.1]} 5. a3 {[%clk 0:03:04.8]} 5...
Bxc3+ {[%clk 0:03:04.3]} 6. bxc3 {[%clk 0:03:06.7]} 6... Qc7 {[%clk 0:03:05.4]}
7. Nf3 {[%clk 0:03:05.3]} 7... Nc6 {[%clk 0:03:06.2]} 8. h4 {[%clk 0:03:05.7]}
8... a6 {[%clk 0:03:04.8]} 9. h5 {[%clk 0:03:06]} 9... h6 {[%clk 0:03:05.1]} 10.
a4 {[%clk 0:03:04.8]} 10... b6 {[%clk 0:03:01.3]} 11. Ba3 {[%clk 0:02:53.3]}
11... Nge7 {[%clk 0:02:59.9]} 12. Bd3 {[%clk 0:02:50.8]} 12... Nf5 {[%clk
0:02:57.6]} 13. Bxf5 {[%clk 0:02:35.8]} 13... exf5 {[%clk 0:02:58.3]} 14. dxc5
{[%clk 0:02:37]} 14... Nxe5 {[%clk 0:02:55.4]} 15. O-O {[%clk 0:02:33.5]} 15...
Nxf3+ {[%clk 0:02:53.3]} 16. Qxf3 {[%clk 0:02:32]} 16... Be6 {[%clk 0:02:54.4]}
17. cxb6 {[%clk 0:02:30.2]} 17... Qxb6 {[%clk 0:02:54.7]} 18. Qg3 {[%clk
0:02:30.4]} 18... Rg8 {[%clk 0:02:50.9]} 19. Rab1 {[%clk 0:02:26.6]} 19... Qc6
{[%clk 0:02:49.7]} 20. Rfe1 {[%clk 0:02:19.2]} 20... Rc8 {[%clk 0:02:50.5]} 21.
a5 {[%clk 0:02:04.2]} 21... Qc7 {[%clk 0:02:40.2]} 22. Qxc7 {[%clk 0:01:49.5]}
22... Rxc7 {[%clk 0:02:40.9]} 23. Rb8+ {[%clk 0:01:48.8]} 23... Kd7 {[%clk
0:02:42]} 24. Rxg8 {[%clk 0:01:48.4]} 24... Rxc3 {[%clk 0:02:43.1]} 25. Bb2
{[%clk 0:01:44.6]} 25... Rxc2 {[%clk 0:02:43.9]} 26. Bxg7 {[%clk 0:01:46.1]}
26... Ra2 {[%clk 0:02:43.1]} 27. Bxh6 {[%clk 0:01:46.6]} 27... Rxa5 {[%clk
0:02:44.1]} 28. Bg5 {[%clk 0:01:46.7]} 28... d4 {[%clk 0:02:44.5]} 29. Rd8+
{[%clk 0:01:46.1]} 29... Kc7 {[%clk 0:02:45.2]} 30. Rc1+ {[%clk 0:01:46.7]}
30... Kb7 {[%clk 0:02:46.5]} 31. h6 {[%clk 0:01:45]} 31... f4 {[%clk 0:02:47.8]}
32. h7 {[%clk 0:01:44.8]} 32... Rxg5 {[%clk 0:02:47.3]} 33. h8=Q {[%clk
0:01:45.2]} 33... Bd5 {[%clk 0:02:49.2]} 34. Rb8+ {[%clk 0:01:37.4]} 34... Ka7
{[%clk 0:02:49.9]} 35. Rc7+ {[%clk 0:01:37.8]} 35... Bb7 {[%clk 0:02:50.7]} 36.
Rcxb7# {[%clk 0:01:38.7]} 1-0

[Event "*** Titled Tuesday 3|2 Blitz"]
[Site "Chess.com"]
[Date "2016.09.06"]
[Round "3"]
[White "steinitz_attack"]
[Black "rithwik2002"]
[Result "0-1"]
[WhiteElo "1791"]
[BlackElo "1915"]
[TimeControl "180+2"]
[EndTime "17:29:45 PDT"]
[Termination "rithwik2002 won by resignation"]

1. d4 {[%clk 0:03:02]} 1... Nf6 {[%clk 0:02:59.4]} 2. Nf3 {[%clk 0:03:02.6]}
2... g6 {[%clk 0:02:40]} 3. Bf4 {[%clk 0:03:02.4]} 3... d6 {[%clk 0:02:20.7]} 4.
h3 {[%clk 0:03:00.8]} 4... Bg7 {[%clk 0:02:21.3]} 5. e3 {[%clk 0:03:01.9]} 5...
O-O {[%clk 0:02:21.6]} 6. Be2 {[%clk 0:03:02.6]} 6... Nc6 {[%clk 0:02:20.4]} 7.
O-O {[%clk 0:03:00.1]} 7... Nd7 {[%clk 0:02:19.5]} 8. c4 {[%clk 0:02:56.9]} 8...
e5 {[%clk 0:02:19.2]} 9. Bh2 {[%clk 0:02:57.5]} 9... f5 {[%clk 0:01:42.8]} 10.
Nc3 {[%clk 0:02:40.4]} 10... g5 {[%clk 0:01:37.8]} 11. Nd2 {[%clk 0:02:00.6]}
11... exd4 {[%clk 0:01:30]} 12. exd4 {[%clk 0:02:01.2]} 12... Nxd4 {[%clk
0:01:30.1]} 13. Bh5 {[%clk 0:01:56.3]} 13... Nf6 {[%clk 0:01:22.8]} 14. Re1
{[%clk 0:01:33.2]} 14... g4 {[%clk 0:01:19.5]} 15. hxg4 {[%clk 0:01:31.5]} 15...
fxg4 {[%clk 0:01:19]} 16. Nde4 {[%clk 0:01:02.8]} 16... Nxh5 {[%clk 0:01:17.1]}
0-1

[Event "*** Titled Tuesday 3|2 Blitz"]
[Site "Chess.com"]
[Date "2016.09.06"]
[Round "3"]
[White "MaestroASK"]
[Black "FairChess_on_YouTube"]
[Result "0-1"]
[WhiteElo "2467"]
[BlackElo "2691"]
[TimeControl "180+2"]
[EndTime "17:30:04 PDT"]
[Termination "FairChess_on_YouTube won by resignation"]

1. g3 {[%clk 0:02:53.6]} 1... g6 {[%clk 0:03:01.9]} 2. Bg2 {[%clk 0:02:53.5]}
2... Bg7 {[%clk 0:03:03.6]} 3. c3 {[%clk 0:02:53.6]} 3... e5 {[%clk 0:03:00.9]}
4. d3 {[%clk 0:02:53]} 4... d5 {[%clk 0:03:01.2]} 5. e4 {[%clk 0:02:53.4]} 5...
Ne7 {[%clk 0:02:58.8]} 6. Nd2 {[%clk 0:02:51.1]} 6... O-O {[%clk 0:02:59.1]} 7.
Nh3 {[%clk 0:02:51.7]} 7... dxe4 {[%clk 0:02:53.4]} 8. dxe4 {[%clk 0:02:51.1]}
8... b6 {[%clk 0:02:54.4]} 9. O-O {[%clk 0:02:50.8]} 9... Ba6 {[%clk 0:02:55.3]}
10. Re1 {[%clk 0:02:50.8]} 10... Nd7 {[%clk 0:02:56.9]} 11. Bf1 {[%clk
0:02:50.4]} 11... Bb7 {[%clk 0:02:56.4]} 12. f3 {[%clk 0:02:49.8]} 12... Nc5
{[%clk 0:02:53.7]} 13. Nf2 {[%clk 0:02:50.2]} 13... a5 {[%clk 0:02:52.7]} 14.
Nb3 {[%clk 0:02:49.5]} 14... Ne6 {[%clk 0:02:45.3]} 15. Qxd8 {[%clk 0:02:48.6]}
15... Rfxd8 {[%clk 0:02:47.2]} 16. a4 {[%clk 0:02:47.8]} 16... f5 {[%clk
0:02:43.7]} 17. Bc4 {[%clk 0:02:43.3]} 17... Kf7 {[%clk 0:02:33.9]} 18. f4
{[%clk 0:02:25]} 18... fxe4 {[%clk 0:02:26.4]} 19. fxe5 {[%clk 0:02:15.8]} 19...
Bd5 {[%clk 0:02:24.8]} 20. Bxd5 {[%clk 0:02:12.8]} 20... Rxd5 {[%clk 0:02:26.7]}
21. Nxe4 {[%clk 0:02:10.8]} 21... Rxe5 {[%clk 0:02:27.3]} 22. Nbd2 {[%clk
0:01:43.9]} 22... Nc5 {[%clk 0:02:13.4]} 23. Rf1+ {[%clk 0:01:42.7]} 23... Kg8
{[%clk 0:02:13.8]} 24. Nxc5 {[%clk 0:01:42]} 24... Rxc5 {[%clk 0:02:15.7]} 25.
Nb3 {[%clk 0:01:37.8]} 25... Rc4 {[%clk 0:02:10.6]} 26. Bf4 {[%clk 0:01:36.5]}
26... Nd5 {[%clk 0:02:10.6]} 27. Nd2 {[%clk 0:01:23.8]} 27... Rc6 {[%clk
0:02:09.6]} 28. Ne4 {[%clk 0:01:21.3]} 28... Re8 {[%clk 0:02:08.8]} 29. Rae1
{[%clk 0:01:19.3]} 29... Rce6 {[%clk 0:02:05.7]} 0-1